Cogmind - Beta 15 @@@ ROGUE MODE // 2025.07.15 @ 00:03:06 Player: Rockstar Result: Destroyed by Z-Imprinter with Zionite Laser-M Performance ------------- Evolutions (1) 500 Regions Visited (5) 1000 Robots Destroyed (12) 60 Value Destroyed (460) 460 Prototype IDs (5) 100 Alien Tech Used (0) 0 Bonus (800) 800 TOTAL SCORE: 2920 Bonus ------- Pacifist 200 Met Imprinter 300 Was Imprinted 300 Cogmind --------- Core Integrity 0/400 Matter 220/300 Energy 47/100 System Corruption 0% Temperature Cool (18) Movement Hovering (56) Location -7/Deep Caves Parts ------- > --- POWER (1) -------- (None) > --- PROPULSION (2) --- Improved Hover Unit Improved Hover Unit > --- UTILITY (4) ------ Small Storage Unit Signal Interpreter > --- WEAPON (2) ------- CR-A16's Pointy Stick > --- INVENTORY (8) ---- Large Storage Unit Shotgun Mining Laser Mace Peak State ------------ > --- POWER ------------ Ion Engine > --- PROPULSION ------- Improved Hover Unit Zionite Glidesys I > --- UTILITY ---------- Small Storage Unit Signal Interpreter Zionite Heavy Carapace > --- WEAPON ----------- Zionite Phaser-S CR-A16's Pointy Stick > --- INVENTORY -------- Improved Hover Unit Improved Hover Unit Improved Hover Unit Large Storage Unit Shotgun Mining Laser Mace [Rating: 35] Favorites ----------- Power Ion Engine Engine Ion Engine Propulsion Improved Hover Unit Leg Aluminum Leg Wheel Armored Wheel Hover Unit Improved Hover Unit Utility Terrain Scan Processor Device Sensor Array Storage Small Storage Unit Processor Terrain Scan Processor Protection Zionite Heavy Carapace Weapon Mace Energy Gun EM Pulse Gun Ballistic Gun Shotgun Impact Weapon Mace Piercing Weapon CR-A16's Pointy Stick Build | -11 -10 -9 -9 -7 -7 ------- Run | Yrd Mat Mat Min Zio Dee Slots Evolved 2 | . . 2 . . . Power . | . . . . . . Propulsion . | . . . . . . Utility 2 | . . 2 . . . Weapon . | . . . . . . Parts Attached 28 | 6 1 15 1 1 4 Power 3 | 1 . 2 . . . Engine 3 | 1 . 2 . . . Core . | . . . . . . Reactor . | . . . . . . Propulsion 10 | 2 . 5 1 . 2 Treads . | . . . . . . Leg 1 | . . 1 . . . Wheel 4 | 2 . 2 . . . Hover 5 | . . 2 1 . 2 Flight . | . . . . . . Utility 7 | 1 1 4 . . 1 Device 2 | . . 2 . . . Storage 2 | 1 1 . . . . Processor 2 | . . 2 . . . Hackware . | . . . . . . Protection 1 | . . . . . 1 Artifact . | . . . . . . Weapon 8 | 2 . 4 . 1 1 Energy Gun 5 | 2 . 2 . . 1 Energy Cannon . | . . . . . . Ballistic Gun 1 | . . 1 . . . Ballistic Cannon . | . . . . . . Launcher . | . . . . . . Special Weapon . | . . . . . . Impact Weapon 1 | . . 1 . . . Slashing Weapon . | . . . . . . Piercing Weapon 1 | . . . . 1 . Special Melee Weapon . | . . . . . . Unidentified Prototypes 3 | . . . . . 3 Parts Lost 16 | . . 10 . . 6 Power 3 | . . 2 . . 1 Propulsion 6 | . . 3 . . 3 Utility 2 | . . 1 . . 1 Weapon 5 | . . 4 . . 1 Highest Loss Streak 6 | . . 6 . . 6 To Critical Strikes . | . . . . . . Average Backups 6 | 1 3 6 7 8 7 Power . | . 1 . . . . Propulsion 2 | 1 2 3 2 2 2 Utility 1 | . . 1 . 2 1 Weapon 2 | . . 1 4 4 3 Tool/Special . | . . . . . . Unused Backups 7 | . . . 3 . 4 Power . | . . . . . . Propulsion 3 | . . . 3 . . Utility 1 | . . . . . 1 Weapon 3 | . . . . . 3 Tool/Special . | . . . . . . Average Slot Usage (%) 84 | . 85 66 88 99 89 Engine 9 | . 14 5 11 11 10 Wheel 9 | . 28 18 5 . . Hover 11 | . . . 16 22 22 Device 7 | . . 4 11 11 9 Storage 11 | . 14 11 11 11 11 Processor 14 | . . 6 22 22 20 Energy Gun 8 | . 28 15 . . . Impact Weapon 6 | . . 2 11 11 4 Piercing Weapon 5 | . . . . 10 11 Peak Build Rating 35 | 6 7 14 13 17 35 Average Rating 12 | 4 6 8 12 16 16 On Entrance 9 | . 6 6 13 13 17 Naked Turns . | . . . . . . Heaviest Build 31 | 14 29 31 13 16 21 Greatest Support 28 | 26 26 28 14 14 21 Greatest Overweight (x) 6 | . 1 6 1 1 1 Average Overweight (x) . | . . . . . . Largest Inventory Capacity 15 | 8 15 15 8 8 8 Average Capacity 11 | 7 14 15 8 8 8 Most Carried 13 | 3 4 13 8 8 8 Average Carried 6 | 1 3 6 7 8 7 Final Capacity 15 | 8 15 15 8 8 8 Final Carried 13 | 3 4 13 8 8 4 Class Distribution -------------------- 100% | Mutant Dominant Class ---------------- Mutant | -10/Materials Mutant | -9/Materials Mutant | -9/Mines Mutant | -7/Zion Mutant | -7/Deep Caves Resources | -11 -10 -9 -9 -7 -7 ----------- Run | Yrd Mat Mat Min Zio Dee Matter Collected 415 | 195 . 220 . . . Remotely . | . . . . . . Salvage Created 507 | . . 507 . . . Parts 19 | . . 19 . . . Haulers Intercepted . | . . . . . . Recyclers Shooed . | . . . . . . Parts Field Recycled . | . . . . . . Retrieved Matter . | . . . . . . Parts Self-Destructed . | . . . . . . Prevented . | . . . . . . Kills | -11 -10 -9 -9 -7 -7 ------- Run | Yrd Mat Mat Min Zio Dee Combat Hostiles Destroyed 11 | . . 11 . . . Guns 10 | . . 10 . . . AOE 1 | . . 1 . . . Classes Destroyed 4 | . . 4 . . . Watcher 1 | . . 1 . . . Grunt 9 | . . 9 . . . Duelist 1 | . . 1 . . . Sentry 1 | . . 1 . . . Best Kill Streak 3 | . . 3 . . . Combat Bots Only 3 | . . 3 . . . Max Kills in Single Turn 1 | . . 1 . . . Gunslinging . | . . . . . . Exploded 1 | . . 1 . . . Melee . | . . . . . . Uniques/NPCs Destroyed . | . . . . . . Combat | -11 -10 -9 -9 -7 -7 -------- Run | Yrd Mat Mat Min Zio Dee Hostile Shots Fired 149 | . . 108 . . 41 Missed 41 | . . 25 . . 16 Hits 108 | . . 83 . . 25 Melee 1 | . . 1 . . . Projectile 107 | . . 82 . . 25 Critical Strikes 1 | . . 1 . . . Damage Taken 1812 | . . 1062 . . 750 Core 423 | . . 187 . . 236 Absorbed by Shields . | . . . . . . Core Remaining (%) 100 | 100 100 . . . . Volleys Fired 46 | . . 45 . . 1 Largest 2 | . . 2 . . 1 Hottest 115 | . . 115 . . 60 Shots Fired 73 | . . 72 . . 1 Gun 73 | . . 72 . . 1 Cannon . | . . . . . . Launcher . | . . . . . . Special . | . . . . . . Kinetic . | . . . . . . Thermal 58 | . . 58 . . . Explosive . | . . . . . . Electromagnetic 14 | . . 14 . . . Phasic 1 | . . . . . 1 Robot Hit Streak 10 | . . 10 . . . Robot Miss Streak 6 | . . 6 . . 1 Penetration Max . | . . . . . . Secondary Targets 1 | . . 1 . . . Max Gunslinging Chain 1 | . . 1 . . . Shots Hit Robots 43 | . . 43 . . . Core Hits 22 | . . 22 . . . Critical Kills . | . . . . . . Critical Parts Destroyed . | . . . . . . Critical Strikes 6 | . . 6 . . . Burn 5 | . . 5 . . . Corrupt 1 | . . 1 . . . Melee Attacks 2 | . . 1 . . 1 Impact 1 | . . 1 . . . Slashing . | . . . . . . Piercing 1 | . . . . . 1 Sneak Attacks . | . . . . . . Combat Hostiles . | . . . . . . Follow-up Attacks . | . . . . . . Damage Inflicted 672 | . . 672 . . . Guns 596 | . . 596 . . . Cannons . | . . . . . . Explosions 76 | . . 76 . . . Melee . | . . . . . . Ramming . | . . . . . . Kinetic . | . . . . . . Thermal 545 | . . 545 . . . Explosive . | . . . . . . Electromagnetic 127 | . . 127 . . . Impact . | . . . . . . Slashing . | . . . . . . Piercing . | . . . . . . Highest Corruption . | . . . . . . Average Corruption . | . . . . . . Corruption Purged . | . . . . . . Corruption Blocked . | . . . . . . Overload Shots . | . . . . . . Overflow Damage . | . . . . . . Projectiles . | . . . . . . Explosions . | . . . . . . Melee . | . . . . . . Knockbacks . | . . . . . . Impact . | . . . . . . Kinetic . | . . . . . . Secondary . | . . . . . . Self-Inflicted Damage . | . . . . . . Shots . | . . . . . . Rammed . | . . . . . . Targets Rammed . | . . . . . . Kicked . | . . . . . . Crushed . | . . . . . . Highest Temperature 333 | . . 333 . . 34 Average Temperature 151 | . . 156 . . 18 Received Heat Transfer 756 | . . 531 . . 225 Effects 1 | . . 1 . . . Energy Bleed 1 | . . 1 . . . Siege Activations . | . . . . . . Martial Activations . | . . . . . . Shielding Activations . | . . . . . . Robots Disrupted . | . . . . . . Combat Hostiles . | . . . . . . Robots Corrupted . | . . . . . . Combat Hostiles . | . . . . . . Parts Fried . | . . . . . . Impact Corruptions . | . . . . . . Robots Melted . | . . . . . . Combat Hostiles . | . . . . . . Parts Melted 5 | . . 5 . . . Heat Transferred 1717 | . . 1717 . . . Parts Sabotaged . | . . . . . . Parts Stolen . | . . . . . . Parts Stripped . | . . . . . . Power Chain Reactions 1 | . . 1 . . . Alert | -11 -10 -9 -9 -7 -7 ------- Run | Yrd Mat Mat Min Zio Dee Maximum Alert Level . | . . . . . . Low Security (%) 100 | 100 100 100 100 . . Level 1 . | . . . . . . Level 2 . | . . . . . . Level 3 . | . . . . . . Level 4 . | . . . . . . Level 5 . | . . . . . . High Security . | . . . . . . Max Security . | . . . . . . Peak Influence 108 | . 15 108 34 . . Initial 34 | . . . 34 . . Average 31 | . 1 39 30 . . Influence Increases 401 | . 15 386 . . . Destroy 0b10 Robot/C 220 | . . 220 . . . Destroy 0b10 Robot/NC 5 | . . 5 . . . Destroy Leader 42 | . . 42 . . . Successful Hack 25 | . . 25 . . . Disable Machine 30 | . . 30 . . . Destroy Structure 4 | . . 4 . . . Partial Spotted 15 | . 15 . . . . Lose Combat Pursuer 60 | . . 60 . . . Influence Decreases 401 | . 15 296 66 24 . Entered New Map 80 | . . . 56 24 . Time Decay 221 | . 15 196 10 . . Lost Part 100 | . . 100 . . . Squads Dispatched 1 | . . 1 . . . Investigation . | . . . . . . Extermination . | . . . . . . Reinforcement 1 | . . 1 . . . Assault . | . . . . . . Garrison . | . . . . . . Intercept . | . . . . . . Searches Triggered . | . . . . . . Construction Impeded . | . . . . . . Haulers Reinforced . | . . . . . . Active Scanning Responses . | . . . . . . Cargo Convoy Interrupts . | . . . . . . Stealth | -11 -10 -9 -9 -7 -7 --------- Run | Yrd Mat Mat Min Zio Dee Distress Signals 4 | . . 4 . . . Communications Jammed . | . . . . . . Distress Signals . | . . . . . . Times Spotted 27 | . . 22 . . 5 Peak Tracking Total 6 | . . 6 . . 5 Tactical Retreats 2 | . . 2 . . . Traps | -11 -10 -9 -9 -7 -7 ------- Run | Yrd Mat Mat Min Zio Dee Traps Triggered . | . . . . . . Indirectly . | . . . . . . Trap Hack Attempts . | . . . . . . Triggered . | . . . . . . Disarmed . | . . . . . . Reprogrammed . | . . . . . . Reused . | . . . . . . Traps Extracted . | . . . . . . Installed . | . . . . . . Triggered . | . . . . . . Machines | -11 -10 -9 -9 -7 -7 ---------- Run | Yrd Mat Mat Min Zio Dee Machines Disabled 2 | . . 2 . . . Max in Single Turn 1 | . . 1 . . . Machines Repaired . | . . . . . . Machines Dismantled . | . . . . . . Machines Sabotaged . | . . . . . . Overloaded Fab Kills . | . . . . . . Hacking | -11 -10 -9 -9 -7 -7 --------- Run | Yrd Mat Mat Min Zio Dee Machines Accessed 6 | . 3 3 . . . Terminals 6 | . 3 3 . . . Fabricators . | . . . . . . Repair Stations . | . . . . . . Recycling Units . | . . . . . . Scanalyzers . | . . . . . . Garrison Access . | . . . . . . Total Hacks 19 | . 6 13 . . . Successful 9 | . . 9 . . . Failed 10 | . 6 4 . . . Catastrophic 2 | . 1 1 . . . Database Lockouts . | . . . . . . Manual 20 | . 5 8 . 7 . Terminals 19 | . 6 13 . . . Fabricators . | . . . . . . Repair Stations . | . . . . . . Recycling Units . | . . . . . . Scanalyzers . | . . . . . . Garrison Access . | . . . . . . Terminal Hacks 7 | . . 7 . . . Robot Analysis 1 | . . 1 . . . Prototype ID Bank 1 | . . 1 . . . Branch Access Points 1 | . . 1 . . . Terminal Index 1 | . . 1 . . . Dispatch Records 1 | . . 1 . . . Maintenance Status 1 | . . 1 . . . Registered Components 1 | . . 1 . . . Fabricator Hacks . | . . . . . . Repair Station Hacks . | . . . . . . Recycling Unit Hacks . | . . . . . . Scanalyzer . | . . . . . . Garrison Access Hacks . | . . . . . . Unauthorized Hacks 2 | . . 2 . . . Terminals 2 | . . 2 . . . Track 1 | . . 1 . . . Botnet 1 | . . 1 . . . Fabricators . | . . . . . . Repair Stations . | . . . . . . Recycling Units . | . . . . . . Scanalyzers . | . . . . . . Garrison Access . | . . . . . . Data Cores Recovered . | . . . . . . Used . | . . . . . . Hacking Detections 6 | . 3 3 . . . Full Trace Events 1 | . . 1 . . . Feedback Events . | . . . . . . Feedback Blocked . | . . . . . . Robot Schematics Acquired . | . . . . . . Robots Built . | . . . . . . Authchips . | . . . . . . Time . | . . . . . . Total Robot Build Rating . | . . . . . . Part Schematics Acquired . | . . . . . . Parts Built . | . . . . . . Authchips . | . . . . . . Time . | . . . . . . Total Part Build Rating . | . . . . . . Parts Repaired . | . . . . . . Time . | . . . . . . Parts Recycled . | . . . . . . Recycled Matter . | . . . . . . Retrieved Matter . | . . . . . . Retrieved Components . | . . . . . . Parts Scanalyzed . | . . . . . . Part Schematics Acquired . | . . . . . . Parts Damaged . | . . . . . . Bothacking | -11 -10 -9 -9 -7 -7 ------------ Run | Yrd Mat Mat Min Zio Dee Used RIF Installer . | . . . . . . Robots Hacked . | . . . . . . Non-combat . | . . . . . . Combat . | . . . . . . Robot Hacks Applied . | . . . . . . Relay Couplers Released . | . . . . . . Fabnet Peak Effective % . | . . . . . . Robots Rewired . | . . . . . . Allies Hacked . | . . . . . . Hacks Repelled . | . . . . . . Allies | -11 -10 -9 -9 -7 -7 -------- Run | Yrd Mat Mat Min Zio Dee Total Allies 4 | . . . . 4 . Largest Group 4 | . . . . 4 1 Highest-Rated Group 155 | . . . . 155 38 Highest-Rated Ally 41 | . . . . 41 38 Total Orders . | . . . . . . Ally Attacks . | . . . . . . Total Damage . | . . . . . . Kills . | . . . . . . Allies Corrupted . | . . . . . . Allies Melted . | . . . . . . Intel | -11 -10 -9 -9 -7 -7 ------- Run | Yrd Mat Mat Min Zio Dee Active Infowar (turns) 804 | . . 201 30 482 91 Sensors 702 | . . 99 30 482 91 Terrain 102 | . . 102 . . . Robot Analysis Total 1 | . . 1 . . . Derelict Logs Recovered . | . . . . . . Drone Launches . | . . . . . . Drone Recoveries . | . . . . . . Exploration | -11 -10 -9 -9 -7 -7 ------------- Run | Yrd Mat Mat Min Zio Dee Turns Passed 1189 | 45 70 454 30 482 108 Spaces Moved 917 | 37 66 257 32 406 119 Core 5 | 2 . 3 . . . Treads . | . . . . . . Legs . | . . . . . . Wheels 353 | 35 66 252 . . . Hover 559 | . . 2 32 406 119 Flight . | . . . . . . Fastest Speed 50 | 50 90 90 56 56 56 Average Speed 103 | 88 103 107 58 113 75 Slowest Speed 350 | 100 105 350 120 116 116 Overloaded Moves . | . . . . . . Propulsion Burnouts . | . . . . . . Robots Hopped . | . . . . . . Potential Cave-ins . | . . . . . . Cave-ins Triggered . | . . . . . . Exploration Rate (%) 24 | 3 19 28 4 65 27 Regions Visited 5 Branch Regions 3 Pre-discovered Areas . | . . . . . . Known Exits Taken 3 | . . 1 1 1 . Unknown Exits Taken 2 | 1 1 . . . . Scrap Searched . | . . . . . . Spaces Dug . | . . . . . . Terrain Destroyed 5 | . . 4 . . 1 Melee . | . . . . . . Projectile 1 | . . . . . 1 AOE 4 | . . 4 . . . Terrain Rammed . | . . . . . . Walls Destroyed . | . . . . . . Machines Disabled . | . . . . . . Actions | -11 -10 -9 -9 -7 -7 --------- Run | Yrd Mat Mat Min Zio Dee Total 1076 | 46 67 358 43 425 137 Wait 43 | . . 24 . 19 . Move 912 | 36 65 256 31 405 119 Hop . | . . . . . . Pick Up 17 | 4 . 8 4 . 1 Fast Attach 22 | 5 1 11 1 1 3 Attach 11 | 1 . 6 . . 4 Detach 9 | . 1 5 . . 3 Swap 4 | . . 2 2 . . Drop 10 | . . . 5 . 5 Fire 46 | . . 45 . . 1 Melee 2 | . . 1 . . 1 Ram . | . . . . . . Kick . | . . . . . . Crush . | . . . . . . Escape Stasis . | . . . . . . Rewire . | . . . . . . Trap . | . . . . . . Miscellaneous . | . . . . . . Route ------- -11/Scrapyard -10/Materials -9/Materials (discovered 2 exits: *Min x2) -9/Mines -7/Zion (discovered 2 exits: *Dee / [*Pro]) -7/Deep Caves History --------- Turn | Location | Event 17 | -11/Scrapyard | Discovered new exit (range 15) 46 | -11/Scrapyard | Entered Materials 94 | -10/Materials | Discovered new exit (range 15) 116 | -10/Materials | Entered another Materials area 116 | -9/Materials | Evolved 2 slots: Utility x2 312 | -9/Materials | Build established: Mutant 359 | -9/Materials | Lost 6 parts (1p3n2w) 487 | -9/Materials | Identified exit to Mines 570 | -9/Materials | Entered Mines 586 | -9/Mines | A Derelict revealed a hidden shortcut to a safe place 589 | -9/Mines | Identified exit to Zion 600 | -9/Mines | Entered Zion 608 | -7/Zion | Found CR-A16's Pointy Stick 634 | -7/Zion | Received a hallucinogenic algorithm 634 | -7/Zion | Ran a hallucination algorithm 668 | -7/Zion | Discovered new exit (range 16) 675 | -7/Zion | Acquired unknown access codes intercepted by a Zionite 871 | -7/Zion | Met Imprinter 893 | -7/Zion | Imprinted 895 | -7/Zion | Declared Zion's savior 987 | -7/Zion | Given A8's code to call for help 1040 | -7/Zion | Opened final containment barrier to the Deep Caves 1059 | -7/Zion | Discovered new exit (range 3) 1059 | -7/Zion | Saw the warning signs outside the Deep Caves entrance 1081 | -7/Zion | Identified exit to Deep Caves 1082 | -7/Zion | Entered Deep Caves 1082 | -7/Deep Caves | Accompanied by 4 allies 1163 | -7/Deep Caves | Z-Facility disabled 1163 | -7/Deep Caves | Attacked by Z-Imprinter 1164 | -7/Deep Caves | Core integrity fell below 50% 1171 | -7/Deep Caves | Core integrity fell below 20% 1173 | -7/Deep Caves | Found Prototype Protection 1173 | -7/Deep Caves | Identified Zio. Heavy Carapace 1190 | -7/Deep Caves | Destroyed by Z-Imprinter with Zionite Laser-M Last Messages --------------- 01146_ NEW_ZION: Z-Facility proximity alert. 01151_ 1S-5LP(o) is busy at the terminal. 01163_ Z-Facility disabled. Z-Imprinter: GET AWAY FROM HERE! I've worked too hard for our future just to have you ruin everything! 01172_ Discarded Terrain Scan Processor. 01173_ Dropped Sensor Array. 01173_ Acquired Prototype Protection. 01173_ Identified Zio. Heavy Carapace. 01176_ Dropped Terrain Scan Processor. 01176_ Dropped Sml. Laser. 01178_ Acquired Prototype Hover Unit. 01178_ Identified Zio. Glidesys I. 01181_ Acquired Prototype Energy Gun. 01181_ Identified Zio. Phaser-S. 01182_ Zio. Heavy Carapace destroyed. 01184_ Zio. Phaser-S destroyed. 01187_ Zio. Glidesys I destroyed. 01187_ Ion Engine destroyed. 01187_ Imp. Hover Unit destroyed. Map ----- +----------------------------------------------------+ | | | | | | | | | | | | | | | | | | | | | | | | | | | | | | | | | | | | | | | | | | | | | | | ????????????????????????#;##?????????????????????? | | ????????????????????????# ##??################??? | | ????????????????????????#@ ;####" ##?? | | ????????????????????????#zI##" #?? | | ????????????????????????#zz#" ### | | ?????????????????? #???#z#; # | | ????????????????? ## | | ????????????????? | | ????????????? | | ????????????? | | ???????????? | | ????????????? """"" """"" | | ????????????? """""""""""""" | | ????????????? """""""""""""" | | ?????????????? """""""""""""" | | ?????????????? """"""""""" | | ??????????????? """""""""""""" | | ??????????????? "?????"""""""" | | ????????????????? "?????"""""""" | | ??????????????????? "?????"""""""" | | ?????????????????????? "??????"" " " | | ???????????????????????? ?????????" | | ?????????????????????????????????????? | | ??????????????????????????????????????" | | ?????????????????????????????????????"" | | ?????????????????????????????????????"""" | | ?????????????????????????????????????"""""" | +----------------------------------------------------+ Best States ------------- Heat Dissipation 28 Energy Generation 10 Energy Capacity 250 Matter Stores 300 Matter Capacity 300 Sight Range 16 Robot Scan Range 14 Terrain Scan Range 14 Terrain Scan Density 85 Armor Coverage 1200 Evasion (%) 53 Item Schematics ----------------- None Robot Schematics ------------------ None Fabricated ------------ Nothing Repaired ---------- Nothing Alien Tech Used ----------------- None Achievements -------------- Adventurer Signs Are For Wimps Challenges ------------ None Game ------ Seed PropulsionMinesnifferShell Manual? 0 Play Time 00:22:09 Cumulative 81.2 hours Start 2025.07.14 @ 23:33:12 End 2025.07.15 @ 00:03:06 Sessions 1 Manual Loads 0 Difficulty Rogue Special Mode None Game No. 76 Rogue 73 Adventurer 1 Explorer 2 Win Type - Total 0 Types 0/0/0/0/0/0/0/0/0/0 Lore% 24 Gallery% 45 Achievement% 35 Wizard Run 0 Options --------- Layout 0 ASCII 0 Keyboard 0 Movement Mouse Keybinds 0 Fullscreen 2 Font 24/Smallcaps Map View 76x50 Zoom Use 0% Tactical HUD 1 Map Filters NONE Filters NONE Steam 1 RUN: 646ed7dd-824f-4ed6-975b-d46763333191